[Event "RUS-ch Men Blitz 2019"]
[Site "Sochi"]
[Date "2019.10.17"]
[Round "10.7"]
[White "Tsydypov, Zhamsaran"]
[Black "Triapishko, Alexandr"]
[Result "1/2-1/2"]
[ECO "B12"]
[WhiteElo "2553"]
[BlackElo "2514"]
[Annotator "ChessBase"]
[PlyCount "187"]
[EventDate "2019.10.17"]
[EventType "swiss"]
[EventCountry "RUS"]
[SourceTitle "playchess.com"]
[Source "ChessBase"]
[SourceQuality "1"]
[TimeControl "180+2"]

1. e4 {[%emt 0:00:00]} c6 {[%emt 0:00:00]} 2. d4 {[%emt 0:00:02]} d5 {[%emt 0:00:00]} 3. e5 {[%emt 0:00:01]} Bf5 {[%emt 0:00:01]} 4. Nf3 {[%emt 0:00:01]} e6 {[%emt 0:00:01]} 5. Be2 {[%emt 0:00:01]} Ne7 {[%emt 0:00:01]} 6. O-O {[%emt 0:00:05]} c5 {[%emt 0:00:01]} 7. dxc5 {[%emt 0:00:09]} Nec6 {[%emt 0:00:06]} 8. a3 {[%emt 0:00:04]} a5 {[%emt 0:00:29]} 9. c4 {[%emt 0:00:12]} d4 {[%emt 0:00:11]} 10. Bd3 {[%emt 0:00:04]} Bxd3 {[%emt 0:00:44]} 11. Qxd3 {[%emt 0:00:02]} Nd7 {[%emt 0:00:01]} 12. Nbd2 {[%emt 0:00:27]} Nxc5 {[%emt 0:00:06]} 13. Qe2 {[%emt 0:00:01]} a4 {[%emt 0:00:28]} 14. Ne4 {[%emt 0:00:08]} Nb3 {[%emt 0:00:33]} 15. Rb1 {[%emt 0:00:01]} Qb6 {[%emt 0:00:17]} 16. Bg5 {[%emt 0:00:09]} h6 {[%emt 0:00:04]} 17. Bh4 {[%emt 0:00:01]} Nc5 {[%emt 0:00:07]} 18. Rfd1 {[%emt 0:00:13]} Nxe4 {[%emt 0:00:02]} 19. Qxe4 {[%emt 0:00:01]} Bc5 {[%emt 0:00:02]} 20. Qg4 {[%emt 0:00:02]} g5 {[%emt 0:00:06]} 21. Bg3 {[%emt 0:00:01]} O-O-O {[%emt 0:00:01]} 22. Qh5 {[%emt 0:00:08]} Qc7 {[%emt 0:00:11]} 23. Ne1 {[%emt 0:00:08]} b6 {[%emt 0:00:08]} 24. Nd3 {[%emt 0:00:01]} Na5 {[%emt 0:00:00]} 25. Rbc1 {[%emt 0:00:09]} Nb3 {[%emt 0:00:02]} 26. Rc2 {[%emt 0:00:01]} Kb8 {[%emt 0:00:03]} 27. h4 {[%emt 0:00:14]} Rdg8 {[%emt 0:00:01]} 28. Qf3 {[%emt 0:00:06]} Qb7 {[%emt 0:00:02]} 29. Qxb7+ {[%emt 0:00:09]} Kxb7 {[%emt 0:00:00]} 30. h5 {[%emt 0:00:01]} Rc8 {[%emt 0:00:04]} 31. Rf1 {[%emt 0:00:09]} Rc7 {[%emt 0:00:03]} 32. f4 {[%emt 0:00:02]} gxf4 {[%emt 0:00:03]} 33. Rxf4 {[%emt 0:00:00]} Rh7 {[%emt 0:00:03]} 34. Bf2 {[%emt 0:00:06]} Rg7 {[%emt 0:00:03]} 35. Rf6 {[%emt 0:00:11]} Rh7 {[%emt 0:00:01]} 36. Rf4 {[%emt 0:00:07]} Rg7 {[%emt 0:00:00]} 37. Kf1 {[%emt 0:00:09]} Rd7 {[%emt 0:00:04]} 38. Bh4 {[%emt 0:00:12]} Be7 {[%emt 0:00:01]} 39. Bf6 {[%emt 0:00:04]} Rg3 {[%emt 0:00:03]} 40. Rf3 {[%emt 0:00:10]} Rxf3+ {[%emt 0:00:01]} 41. gxf3 {[%emt 0:00:00]} Nc5 {[%emt 0:00:03]} 42. Ke2 {[%emt 0:00:12]} Kc6 {[%emt 0:00:01]} 43. Bg7 {[%emt 0:00:08]} Bg5 {[%emt 0:00:05]} 44. f4 {[%emt 0:00:01]} Nxd3 {[%emt 0:00:01]} 45. fxg5 {[%emt 0:00:02]} Nf4+ {[%emt 0:00:01]} 46. Kf3 {[%emt 0:00:01]} hxg5 {[%emt 0:00:03]} 47. h6 {[%emt 0:00:02]} d3 {[%emt 0:00:02]} 48. Rd2 {[%emt 0:00:02]} Kc5 {[%emt 0:00:01]} 49. h7 {[%emt 0:00:01]} Ng6 {[%emt 0:00:01]} 50. h8=Q {[%emt 0:00:07]} Nxh8 {[%emt 0:00:01]} 51. Bxh8 {[%emt 0:00:00]} Kxc4 {[%emt 0:00:01]} 52. Bf6 {[%emt 0:00:02]} Rd4 {[%emt 0:00:03]} 53. Bxg5 {[%emt 0:00:02]} b5 {[%emt 0:00:03]} 54. Bf4 {[%emt 0:00:04]} Kb3 {[%emt 0:00:02]} 55. Ke3 {[%emt 0:00:00]} Kc4 {[%emt 0:00:02]} 56. Bg3 {[%emt 0:00:03]} Rd5 {[%emt 0:00:02]} 57. Rd1 {[%emt 0:00:01]} Kb3 {[%emt 0:00:03]} 58. Rd2 {[%emt 0:00:02]} Kc4 {[%emt 0:00:01]} 59. Bf4 {[%emt 0:00:01]} Rd4 {[%emt 0:00:03]} 60. Rd1 {[%emt 0:00:03]} Rd5 {[%emt 0:00:02]} 61. Bg3 {[%emt 0:00:05]} Kb3 {[%emt 0:00:03]} 62. Rd2 {[%emt 0:00:01]} Kc4 {[%emt 0:00:00]} 63. Bh2 {[%emt 0:00:05]} Rd4 {[%emt 0:00:01]} 64. Bf4 {[%emt 0:00:01]} Rd5 {[%emt 0:00:01]} 65. Kf3 {[%emt 0:00:04]} Rd4 {[%emt 0:00:04]} 66. Bg5 {[%emt 0:00:01]} Rd5 {[%emt 0:00:03]} 67. Ke4 {[%emt 0:00:01]} Rd4+ {[%emt 0:00:01]} 68. Ke3 Rd5 69. Bf6 {[%emt 0:00:02]} Rd4 {[%emt 0:00:01]} 70. Be7 {[%emt 0:00:01]} Rd5 {[%emt 0:00:03]} 71. Bd6 {[%emt 0:00:01]} f6 {[%emt 0:00:05]} 72. Ke4 {[%emt 0:00:06]} f5+ {[%emt 0:00:03]} 73. Ke3 {[%emt 0:00:01]} Rd4 {[%emt 0:00:02]} 74. Rd1 {[%emt 0:00:00]} Re4+ {[%emt 0:00:01]} 75. Kf3 {[%emt 0:00:02]} Rd4 {[%emt 0:00:01]} 76. Bb4 {[%emt 0:00:03]} Kb3 {[%emt 0:00:03]} 77. Ke3 {[%emt 0:00:01]} Re4+ {[%emt 0:00:01]} 78. Kxd3 Rxe5 {[%emt 0:00:02]} 79. Rf1 {[%emt 0:00:03]} Rd5+ {[%emt 0:00:02]} 80. Ke2 {[%emt 0:00:01]} Kxb2 {[%emt 0:00:01]} 81. Rf3 {[%emt 0:00:01]} Kc2 {[%emt 0:00:03]} 82. Rc3+ {[%emt 0:00:02]} Kb2 {[%emt 0:00:01]} 83. Rf3 {[%emt 0:00:03]} Kc2 {[%emt 0:00:01]} 84. Bc3 {[%emt 0:00:04]} Rc5 {[%emt 0:00:03]} 85. Bd4 {[%emt 0:00:02]} Rc4 {[%emt 0:00:01]} 86. Bf6 {[%emt 0:00:04]} Re4+ {[%emt 0:00:02]} 87. Kf2 {[%emt 0:00:01]} b4 {[%emt 0:00:04]} 88. axb4 {[%emt 0:00:02]} Rxb4 {[%emt 0:00:01]} 89. Rc3+ {[%emt 0:00:01]} Kb1 {[%emt 0:00:03]} 90. Ra3 {[%emt 0:00:01]} Kc2 {[%emt 0:00:02]} 91. Ke2 {[%emt 0:00:02]} Re4+ {[%emt 0:00:01]} 92. Kf2 {[%emt 0:00:00]} Rb4 {[%emt 0:00:01]} 93. Rc3+ {[%emt 0:00:03]} Kb1 {[%emt 0:00:01]} 94. Ra3 {[%emt 0:00:01]} 1/2-1/2

[Event "RUS-ch Men Blitz 2019"]
[Site "Sochi"]
[Date "2019.10.17"]
[Round "10.8"]
[White "Popov, Valerij"]
[Black "Timofeev, Artyom"]
[Result "0-1"]
[ECO "A45"]
[WhiteElo "2535"]
[BlackElo "2595"]
[Annotator "ChessBase"]
[PlyCount "104"]
[EventDate "2019.10.17"]
[EventType "swiss"]
[EventCountry "RUS"]
[SourceTitle "playchess.com"]
[Source "ChessBase"]
[SourceQuality "1"]
[TimeControl "180+2"]

1. d4 {[%emt 0:00:00]} Nf6 {[%emt 0:00:00]} 2. Bg5 {[%emt 0:00:00]} e6 {[%emt 0:00:00]} 3. e3 {[%emt 0:00:07]} c5 {[%emt 0:00:01]} 4. c3 {[%emt 0:00:01]} d5 {[%emt 0:00:03]} 5. Nd2 {[%emt 0:00:02]} b6 {[%emt 0:00:02]} 6. Ngf3 {[%emt 0:00:14]} Be7 {[%emt 0:00:02]} 7. Bb5+ {[%emt 0:00:05]} Nfd7 {[%emt 0:00:10]} 8. Bxe7 {[%emt 0:00:19]} Qxe7 {[%emt 0:00:01]} 9. e4 {[%emt 0:00:06]} Bb7 {[%emt 0:00:03]} 10. Qe2 {[%emt 0:00:10]} O-O {[%emt 0:00:04]} 11. O-O {[%emt 0:00:19]} cxd4 {[%emt 0:00:18]} 12. Nxd4 {[%emt 0:00:04]} a6 {[%emt 0:00:07]} 13. Bd3 {[%emt 0:00:14]} dxe4 {[%emt 0:00:07]} 14. Bxe4 {[%emt 0:00:06]} Nf6 {[%emt 0:00:03]} 15. Bf3 {[%emt 0:00:11]} Bxf3 {[%emt 0:00:13]} 16. Qxf3 {[%emt 0:00:01]} Nbd7 {[%emt 0:00:01]} 17. Rfd1 {[%emt 0:00:10]} Ne5 {[%emt 0:00:12]} 18. Qg3 {[%emt 0:00:02]} Ng6 {[%emt 0:00:06]} 19. Nc4 {[%emt 0:00:06]} b5 {[%emt 0:00:07]} 20. Na5 {[%emt 0:00:02]} Qc5 {[%emt 0:00:18]} 21. Nab3 {[%emt 0:00:20]} Qb6 {[%emt 0:00:02]} 22. a4 {[%emt 0:00:07]} bxa4 {[%emt 0:00:02]} 23. Rxa4 {[%emt 0:00:01]} Nd5 {[%emt 0:00:08]} 24. Ra3 {[%emt 0:00:10]} Rfc8 {[%emt 0:00:16]} 25. Rda1 {[%emt 0:00:04]} h6 {[%emt 0:00:04]} 26. Qd3 {[%emt 0:00:04]} Ngf4 {[%emt 0:00:05]} 27. Qf1 {[%emt 0:00:02]} e5 {[%emt 0:00:06]} 28. Nf5 {[%emt 0:00:17]} Qe6 {[%emt 0:00:23]} 29. Ng3 {[%emt 0:00:03]} Nf6 {[%emt 0:00:06]} 30. Ne2 {[%emt 0:00:05]} Nd3 {[%emt 0:00:03]} 31. Qb1 {[%emt 0:00:07]} Rd8 {[%emt 0:00:01]} 32. h3 {[%emt 0:00:09]} Ne4 {[%emt 0:00:04]} 33. f3 {[%emt 0:00:03]} Ng5 {[%emt 0:00:04]} 34. Kh2 {[%emt 0:00:05]} Qd6 {[%emt 0:00:13]} 35. Kh1 {[%emt 0:00:02]} Nf2+ {[%emt 0:00:16]} 36. Kg1 {[%emt 0:00:02]} Qb6 {[%emt 0:00:00]} 37. Kh2 {[%emt 0:00:02]} Nfxh3 {[%emt 0:00:02]} 38. Qf1 {[%emt 0:00:05]} Nf2 {[%emt 0:00:07]} 39. c4 {[%emt 0:00:01]} Nd3 {[%emt 0:00:01]} 40. c5 {[%emt 0:00:04]} Nxc5 {[%emt 0:00:02]} 41. Qf2 {[%emt 0:00:02]} Nd7 {[%emt 0:00:01]} 42. Qxb6 {[%emt 0:00:01]} Nxb6 {[%emt 0:00:01]} 43. Rxa6 {[%emt 0:00:01]} Rxa6 {[%emt 0:00:00]} 44. Rxa6 {[%emt 0:00:00]} Nc4 {[%emt 0:00:01]} 45. Ra2 {[%emt 0:00:06]} Rb8 {[%emt 0:00:01]} 46. Nc5 {[%emt 0:00:01]} Rxb2 {[%emt 0:00:08]} 47. Ra8+ {[%emt 0:00:01]} Kh7 {[%emt 0:00:01]} 48. Ng1 {[%emt 0:00:01]} Ne3 {[%emt 0:00:03]} 49. Nd7 {[%emt 0:00:01]} Ne6 {[%emt 0:00:01]} 50. Nxe5 {[%emt 0:00:03]} Rxg2+ {[%emt 0:00:01]} 51. Kh1 {[%emt 0:00:01]} Rg5 {[%emt 0:00:02]} 52. Ng4 {[%emt 0:00:03]} Nxg4 {[%emt 0:00:01]} 0-1

[Event "RUS-ch Men Blitz 2019"]
[Site "Sochi"]
[Date "2019.10.17"]
[Round "10.9"]
[White "Potapov, Pavel"]
[Black "Golubov, Saveliy"]
[Result "0-1"]
[ECO "B09"]
[WhiteElo "2489"]
[BlackElo "2469"]
[Annotator "ChessBase"]
[PlyCount "70"]
[EventDate "2019.10.17"]
[EventType "swiss"]
[EventCountry "RUS"]
[SourceTitle "playchess.com"]
[Source "ChessBase"]
[SourceQuality "1"]
[TimeControl "180+2"]

1. e4 {[%emt 0:00:00]} g6 {[%emt 0:00:00]} 2. d4 {[%emt 0:00:01]} Bg7 {[%emt 0:00:00]} 3. Nc3 {[%emt 0:00:00]} d6 {[%emt 0:00:00]} 4. f4 {[%emt 0:00:02]} Nf6 {[%emt 0:00:02]} 5. Nf3 {[%emt 0:00:02]} O-O {[%emt 0:00:02]} 6. Be2 {[%emt 0:00:02]} c5 {[%emt 0:00:10]} 7. dxc5 {[%emt 0:00:02]} Qa5 {[%emt 0:00:20]} 8. O-O {[%emt 0:00:02]} Qxc5+ {[%emt 0:00:02]} 9. Kh1 {[%emt 0:00:01]} Nc6 {[%emt 0:00:09]} 10. Bd3 {[%emt 0:00:02]} Bg4 {[%emt 0:00:10]} 11. Qe1 {[%emt 0:00:01]} Nb4 {[%emt 0:00:36]} 12. Be3 {[%emt 0:00:06]} Qh5 {[%emt 0:00:02]} 13. a3 {[%emt 0:00:19]} Nxd3 {[%emt 0:00:02]} 14. cxd3 {[%emt 0:00:01]} a6 {[%emt 0:00:15]} 15. Rc1 {[%emt 0:00:16]} Rac8 {[%emt 0:00:01]} 16. Qg3 {[%emt 0:00:11]} Bd7 {[%emt 0:00:10]} 17. d4 {[%emt 0:00:21]} Bc6 {[%emt 0:00:23]} 18. d5 {[%emt 0:00:09]} Bb5 {[%emt 0:00:06]} 19. Rfe1 {[%emt 0:00:18]} Rxc3 {[%emt 0:00:06]} 20. bxc3 {[%emt 0:00:03]} Nxe4 {[%emt 0:00:01]} 21. Qh3 {[%emt 0:00:09]} Qxh3 {[%emt 0:00:08]} 22. gxh3 {[%emt 0:00:01]} Nxc3 {[%emt 0:00:03]} 23. Bd4 {[%emt 0:00:15]} Nxd5 {[%emt 0:00:01]} 24. Bxg7 Kxg7 {[%emt 0:00:01]} 25. Nd4 {[%emt 0:00:08]} Bd7 {[%emt 0:00:05]} 26. Rf1 {[%emt 0:00:07]} e5 {[%emt 0:00:10]} 27. fxe5 {[%emt 0:00:02]} dxe5 {[%emt 0:00:01]} 28. Nf3 {[%emt 0:00:02]} Re8 {[%emt 0:00:14]} 29. Rfe1 f6 {[%emt 0:00:03]} 30. h4 {[%emt 0:00:05]} Bc6 {[%emt 0:00:04]} 31. Kg1 {[%emt 0:00:05]} Nf4 {[%emt 0:00:05]} 32. Rc3 {[%emt 0:00:04]} Nd5 {[%emt 0:00:05]} 33. Rcc1 {[%emt 0:00:04]} Kf7 {[%emt 0:00:07]} 34. Kf2 {[%emt 0:00:01]} Nf4 {[%emt 0:00:05]} 35. Rc3 {[%emt 0:00:10]} e4 {[%emt 0:00:02]} 0-1

[Event "RUS-ch Men Blitz 2019"]
[Site "Sochi"]
[Date "2019.10.17"]
[Round "10.10"]
[White "Nozdrachev, Vladislav"]
[Black "Khegay, Dmitriy"]
[Result "1-0"]
[ECO "B00"]
[WhiteElo "2494"]
[BlackElo "2509"]
[Annotator "ChessBase"]
[PlyCount "47"]
[EventDate "2019.10.17"]
[EventType "swiss"]
[EventCountry "RUS"]
[SourceTitle "playchess.com"]
[Source "ChessBase"]
[SourceQuality "1"]
[TimeControl "180+2"]

1. e4 {[%emt 0:00:00]} Nc6 {[%emt 0:00:02]} 2. Nf3 d5 3. exd5 {[%emt 0:00:17]} Qxd5 {[%emt 0:00:01]} 4. Nc3 Qa5 5. Bb5 {[%emt 0:00:06]} Bg4 {[%emt 0:00:01]} 6. h3 {[%emt 0:00:05]} Bd7 {[%emt 0:00:11]} 7. d4 {[%emt 0:00:11]} a6 {[%emt 0:00:03]} 8. Bc4 {[%emt 0:00:09]} Nf6 {[%emt 0:00:20]} 9. d5 {[%emt 0:00:24]} Nb8 {[%emt 0:00:31]} 10. O-O {[%emt 0:00:12]} g6 {[%emt 0:00:06]} 11. Ne5 {[%emt 0:00:04]} Bg7 {[%emt 0:00:02]} 12. Bb3 {[%emt 0:00:10]} b5 {[%emt 0:00:15]} 13. d6 {[%emt 0:00:13]} e6 {[%emt 0:00:03]} 14. Qf3 {[%emt 0:00:07]} Ra7 {[%emt 0:00:11]} 15. Bg5 {[%emt 0:00:10]} cxd6 {[%emt 0:00:08]} 16. Bxf6 {[%emt 0:00:02]} O-O {[%emt 0:00:01]} 17. Ng4 {[%emt 0:00:06]} h5 {[%emt 0:00:06]} 18. Bxg7 {[%emt 0:00:01]} Kxg7 {[%emt 0:00:01]} 19. Qf6+ {[%emt 0:00:07]} Kh7 {[%emt 0:00:01]} 20. Ne3 {[%emt 0:00:18]} Bc6 {[%emt 0:00:01]} 21. Bxe6 {[%emt 0:00:06]} b4 {[%emt 0:00:01]} 22. Ncd5 {[%emt 0:00:09]} Qd8 {[%emt 0:00:17]} 23. Qd4 {[%emt 0:00:09]} fxe6 {[%emt 0:00:14]} 24. Qxa7+ {[%emt 0:00:01] exd5} 1-0

[Event "RUS-ch Men Blitz 2019"]
[Site "Sochi"]
[Date "2019.10.17"]
[Round "10.11"]
[White "Savchenko, Boris"]
[Black "Zakhartsov, Vladimir"]
[Result "1-0"]
[ECO "B50"]
[WhiteElo "2581"]
[BlackElo "2514"]
[Annotator "ChessBase"]
[PlyCount "65"]
[EventDate "2019.10.17"]
[EventType "swiss"]
[EventCountry "RUS"]
[SourceTitle "playchess.com"]
[Source "ChessBase"]
[SourceQuality "1"]
[TimeControl "180+2"]

1. e4 {[%emt 0:00:00]} c5 {[%emt 0:00:00]} 2. Nf3 {[%emt 0:00:01]} d6 {[%emt 0:00:00]} 3. c3 {[%emt 0:00:02]} Nf6 {[%emt 0:00:02]} 4. g3 {[%emt 0:00:01]} g6 {[%emt 0:00:04]} 5. Bg2 {[%emt 0:00:01]} Bg7 {[%emt 0:00:01]} 6. O-O {[%emt 0:00:01]} O-O {[%emt 0:00:02]} 7. Re1 {[%emt 0:00:02]} Nc6 {[%emt 0:00:05]} 8. d3 {[%emt 0:00:03]} Bg4 {[%emt 0:00:03]} 9. h3 {[%emt 0:00:02]} Bxf3 {[%emt 0:00:02]} 10. Bxf3 {[%emt 0:00:02]} Nd7 {[%emt 0:00:01]} 11. a4 {[%emt 0:00:03]} a6 {[%emt 0:00:02]} 12. Bg2 {[%emt 0:00:01]} Rb8 {[%emt 0:00:03]} 13. Nd2 {[%emt 0:00:25]} b5 {[%emt 0:00:05]} 14. axb5 {[%emt 0:00:03]} axb5 {[%emt 0:00:01]} 15. Nf1 {[%emt 0:00:08]} b4 {[%emt 0:00:04]} 16. e5 {[%emt 0:00:07]} Qc7 {[%emt 0:00:35]} 17. exd6 {[%emt 0:00:05]} exd6 {[%emt 0:00:13]} 18. Ne3 {[%emt 0:00:05]} Nb6 {[%emt 0:00:18]} 19. Bd2 {[%emt 0:00:07]} Rfe8 {[%emt 0:00:13]} 20. Ra6 {[%emt 0:00:08]} Ne5 {[%emt 0:00:09]} 21. Qc2 {[%emt 0:00:17]} b3 {[%emt 0:00:15]} 22. Qb1 {[%emt 0:00:04]} c4 {[%emt 0:00:03]} 23. d4 {[%emt 0:00:04]} Nd3 {[%emt 0:00:15]} 24. Rd1 {[%emt 0:00:24]} Qd7 {[%emt 0:00:22]} 25. Rxb6 {[%emt 0:00:20]} Rxb6 {[%emt 0:00:22]} 26. Nxc4 {[%emt 0:00:02]} Qf5 {[%emt 0:00:06]} 27. Be3 {[%emt 0:00:05]} Rxe3 {[%emt 0:00:25]} 28. fxe3 {[%emt 0:00:01]} Qf2+ {[%emt 0:00:00]} 29. Kh2 {[%emt 0:00:07]} Qc2 30. Nxb6 {[%emt 0:00:03]} Bh6 {[%emt 0:00:05]} 31. Nc4 {[%emt 0:00:09]} d5 {[%emt 0:00:01]} 32. Nd2 {[%emt 0:00:13]} Bxe3 {[%emt 0:00:03]} 33. Nxb3 {[%emt 0:00:05]} 1-0

[Event "RUS-ch Men Blitz 2019"]
[Site "Sochi"]
[Date "2019.10.17"]
[Round "10.12"]
[White "Nesterov, Arseniy"]
[Black "Rozum, Ivan"]
[Result "1-0"]
[ECO "A53"]
[WhiteElo "2484"]
[BlackElo "2599"]
[Annotator "ChessBase"]
[PlyCount "101"]
[EventDate "2019.10.17"]
[EventType "swiss"]
[EventCountry "RUS"]
[SourceTitle "playchess.com"]
[Source "ChessBase"]
[SourceQuality "1"]
[TimeControl "180+2"]

1. d4 {[%emt 0:00:00]} Nf6 {[%emt 0:00:00]} 2. c4 {[%emt 0:00:00]} d6 {[%emt 0:00:00]} 3. Nc3 {[%emt 0:00:02]} e5 {[%emt 0:00:01]} 4. d5 {[%emt 0:00:01]} Be7 {[%emt 0:00:01]} 5. e4 {[%emt 0:00:08]} O-O {[%emt 0:00:02]} 6. f3 {[%emt 0:00:19]} Nbd7 {[%emt 0:00:03]} 7. Be3 {[%emt 0:00:01]} Nh5 {[%emt 0:00:11]} 8. Qd2 {[%emt 0:00:03]} g6 {[%emt 0:00:02]} 9. O-O-O {[%emt 0:00:12]} f5 {[%emt 0:00:01]} 10. exf5 {[%emt 0:00:05]} gxf5 {[%emt 0:00:01]} 11. g4 {[%emt 0:00:16]} fxg4 {[%emt 0:00:12]} 12. fxg4 {[%emt 0:00:02]} Nf4 {[%emt 0:00:02]} 13. Nge2 {[%emt 0:00:03]} Bg5 {[%emt 0:00:25]} 14. h4 {[%emt 0:00:07]} Bxh4 {[%emt 0:00:15]} 15. Nxf4 {[%emt 0:00:23]} exf4 {[%emt 0:00:01]} 16. Bd4 {[%emt 0:00:01]} Ne5 {[%emt 0:00:25]} 17. Qh2 {[%emt 0:00:18]} Nf3 {[%emt 0:00:32]} 18. Qh3 {[%emt 0:00:01]} Qg5 {[%emt 0:00:55]} 19. Qxf3 {[%emt 0:00:16]} Bxg4 {[%emt 0:00:01]} 20. Qd3 {[%emt 0:00:02]} Bxd1 {[%emt 0:00:12]} 21. Kxd1 {[%emt 0:00:15]} Rae8 {[%emt 0:00:05]} 22. Be2 {[%emt 0:00:28]} Re7 {[%emt 0:00:04]} 23. Ne4 {[%emt 0:00:09]} Qg6 {[%emt 0:00:03]} 24. Rg1 {[%emt 0:00:24]} Bg3 {[%emt 0:00:04]} 25. Nxg3 {[%emt 0:00:01]} Qxd3+ 26. Bxd3 {[%emt 0:00:01]} fxg3 {[%emt 0:00:06]} 27. Rxg3+ {[%emt 0:00:01]} Kf7 {[%emt 0:00:01]} 28. Bxh7 {[%emt 0:00:09]} Ke8 {[%emt 0:00:01]} 29. Bd3 {[%emt 0:00:02]} Kd7 {[%emt 0:00:02]} 30. Kd2 {[%emt 0:00:03]} c5 {[%emt 0:00:02]} 31. dxc6+ {[%emt 0:00:01]} bxc6 {[%emt 0:00:00]} 32. c5 {[%emt 0:00:02]} Rf4 {[%emt 0:00:05]} 33. Be3 {[%emt 0:00:01]} Ra4 {[%emt 0:00:03]} 34. a3 {[%emt 0:00:01]} d5 {[%emt 0:00:04]} 35. Bf5+ {[%emt 0:00:02]} Kc7 {[%emt 0:00:01]} 36. Bc2 {[%emt 0:00:03]} Rh4 {[%emt 0:00:02]} 37. Bg5 {[%emt 0:00:01]} Rh2+ {[%emt 0:00:01]} 38. Kc3 {[%emt 0:00:06]} Ree2 {[%emt 0:00:01]} 39. Bf4+ {[%emt 0:00:02]} Kb7 {[%emt 0:00:01]} 40. Rg7+ {[%emt 0:00:00]} Kc8 {[%emt 0:00:02]} 41. Bxh2 {[%emt 0:00:02]} Rxh2 {[%emt 0:00:01]} 42. Rxa7 {[%emt 0:00:03]} Kb8 {[%emt 0:00:02]} 43. Rf7 {[%emt 0:00:01]} Rh4 {[%emt 0:00:01]} 44. b4 {[%emt 0:00:03]} Rh3+ {[%emt 0:00:01]} 45. Bd3 {[%emt 0:00:02]} Rg3 {[%emt 0:00:03]} 46. a4 {[%emt 0:00:01]} Rg1 {[%emt 0:00:02]} 47. b5 {[%emt 0:00:01]} Ra1 {[%emt 0:00:04]} 48. bxc6 {[%emt 0:00:03]} Ra3+ {[%emt 0:00:03]} 49. Kc2 {[%emt 0:00:02]} Rxa4 50. c7+ {[%emt 0:00:01]} Kb7 {[%emt 0:00:04]} 51. c6+ {[%emt 0:00:01]} 1-0

[Event "RUS-ch Men Blitz 2019"]
[Site "Sochi"]
[Date "2019.10.17"]
[Round "10.13"]
[White "Sakaev, Konstantin"]
[Black "Gutenev, Alexander"]
[Result "1-0"]
[ECO "A50"]
[WhiteElo "2595"]
[BlackElo "2469"]
[Annotator "ChessBase"]
[PlyCount "49"]
[EventDate "2019.10.17"]
[EventType "swiss"]
[EventCountry "RUS"]
[SourceTitle "playchess.com"]
[Source "ChessBase"]
[SourceQuality "1"]
[TimeControl "180+2"]

1. d4 {[%emt 0:00:00]} Nf6 {[%emt 0:00:00]} 2. c4 {[%emt 0:00:00]} b6 {[%emt 0:00:00]} 3. Nc3 {[%emt 0:00:03]} Bb7 {[%emt 0:00:00]} 4. Nf3 {[%emt 0:00:04]} g6 {[%emt 0:00:02]} 5. d5 {[%emt 0:00:09]} Bg7 {[%emt 0:00:13]} 6. e4 {[%emt 0:00:02]} O-O {[%emt 0:00:17]} 7. Bd3 {[%emt 0:00:02]} d6 {[%emt 0:00:10]} 8. O-O {[%emt 0:00:03]} Nfd7 {[%emt 0:00:13]} 9. Bg5 {[%emt 0:00:11]} h6 {[%emt 0:00:09]} 10. Bh4 {[%emt 0:00:01]} Nc5 {[%emt 0:00:13]} 11. Bc2 {[%emt 0:00:11]} Qd7 {[%emt 0:00:01]} 12. Re1 {[%emt 0:00:05]} c6 {[%emt 0:00:18]} 13. e5 {[%emt 0:00:12]} cxd5 {[%emt 0:00:04]} 14. Nxd5 {[%emt 0:00:17]} Bxd5 {[%emt 0:00:09]} 15. cxd5 {[%emt 0:00:11]} g5 {[%emt 0:00:35]} 16. Bg3 {[%emt 0:00:20]} Nba6 {[%emt 0:00:05]} 17. a3 {[%emt 0:00:09]} Qg4 {[%emt 0:00:15]} 18. b4 {[%emt 0:00:13]} Nd7 {[%emt 0:00:01]} 19. Qd3 {[%emt 0:00:15]} f5 {[%emt 0:00:05]} 20. Qxa6 {[%emt 0:00:15]} f4 {[%emt 0:00:02]} 21. Qd3 {[%emt 0:00:09]} Nxe5 {[%emt 0:00:02]} 22. Rxe5 {[%emt 0:00:18]} fxg3 {[%emt 0:00:14]} 23. Qh7+ {[%emt 0:00:08]} Kf7 {[%emt 0:00:01]} 24. Qg6+ {[%emt 0:00:05]} Kg8 {[%emt 0:00:01]} 25. Rxe7 {[%emt 0:00:07]} 1-0

[Event "RUS-ch Men Blitz 2019"]
[Site "Sochi"]
[Date "2019.10.17"]
[Round "10.14"]
[White "Savitskiy, Sergey"]
[Black "Antipov, Mikhail Al."]
[Result "1-0"]
[ECO "B31"]
[WhiteElo "2407"]
[BlackElo "2567"]
[Annotator "ChessBase"]
[PlyCount "83"]
[EventDate "2019.10.17"]
[EventType "swiss"]
[EventCountry "RUS"]
[SourceTitle "playchess.com"]
[Source "ChessBase"]
[SourceQuality "1"]
[TimeControl "180+2"]

1. e4 {[%emt 0:00:00]} c5 {[%emt 0:00:00]} 2. Nf3 {[%emt 0:00:00]} Nc6 {[%emt 0:00:01]} 3. Bb5 {[%emt 0:00:01]} g6 {[%emt 0:00:01]} 4. O-O {[%emt 0:00:02]} Bg7 {[%emt 0:00:01]} 5. c3 {[%emt 0:00:01]} Nf6 {[%emt 0:00:02]} 6. Re1 {[%emt 0:00:01]} O-O {[%emt 0:00:06]} 7. d4 {[%emt 0:00:00]} d5 {[%emt 0:00:00]} 8. e5 {[%emt 0:00:08]} Ne4 {[%emt 0:00:01]} 9. Bxc6 {[%emt 0:00:02]} bxc6 {[%emt 0:00:01]} 10. Nbd2 {[%emt 0:00:01]} Nxd2 {[%emt 0:01:16]} 11. Bxd2 {[%emt 0:00:02]} Qb6 {[%emt 0:00:01]} 12. dxc5 {[%emt 0:01:04]} Qxb2 {[%emt 0:00:37]} 13. Qa4 {[%emt 0:00:33]} Bf5 {[%emt 0:00:17]} 14. Bg5 {[%emt 0:00:29]} e6 {[%emt 0:00:42]} 15. Nd4 {[%emt 0:00:18]} Qxc3 {[%emt 0:00:08]} 16. Rac1 {[%emt 0:00:01]} Qb2 {[%emt 0:00:02]} 17. Nxc6 {[%emt 0:00:10]} h6 {[%emt 0:00:09]} 18. Be7 {[%emt 0:00:10]} Rfe8 {[%emt 0:00:00]} 19. Bd6 {[%emt 0:00:00]} Be4 {[%emt 0:00:06]} 20. Nd4 {[%emt 0:00:10]} h5 {[%emt 0:00:03]} 21. c6 {[%emt 0:00:05]} Bh6 {[%emt 0:00:01]} 22. Rcd1 {[%emt 0:00:00]} Qc3 {[%emt 0:00:04]} 23. c7 {[%emt 0:00:05]} Rec8 {[%emt 0:00:03]} 24. Qc6 {[%emt 0:00:08]} Qa5 {[%emt 0:00:02]} 25. Qd7 {[%emt 0:00:07]} Bd2 {[%emt 0:00:02]} 26. Nc6 {[%emt 0:00:05]} Qc3 {[%emt 0:00:02]} 27. Ne7+ {[%emt 0:00:02]} Kg7 {[%emt 0:00:01]} 28. Rf1 {[%emt 0:00:03]} h4 {[%emt 0:00:02]} 29. Nxc8 {[%emt 0:00:03]} h3 {[%emt 0:00:01]} 30. Bf8+ {[%emt 0:00:04]} Kxf8 {[%emt 0:00:02]} 31. Qe7+ {[%emt 0:00:02]} Kg8 {[%emt 0:00:02]} 32. Nd6 {[%emt 0:00:00]} hxg2 {[%emt 0:00:03]} 33. Qxf7+ {[%emt 0:00:03]} Kh8 {[%emt 0:00:01]} 34. Qf6+ {[%emt 0:00:03]} Kh7 {[%emt 0:00:01]} 35. Qh4+ {[%emt 0:00:01]} Kg7 {[%emt 0:00:02]} 36. Qe7+ {[%emt 0:00:02]} Kh6 {[%emt 0:00:03]} 37. Nf7+ {[%emt 0:00:01]} Kh5 {[%emt 0:00:00]} 38. Rfe1 {[%emt 0:00:02]} Bf4 {[%emt 0:00:02]} 39. Re3 {[%emt 0:00:04]} Qc2 {[%emt 0:00:04]} 40. Rh3+ {[%emt 0:00:02]} Kg4 {[%emt 0:00:00]} 41. Qh4+ {[%emt 0:00:02]} Kf5 {[%emt 0:00:01]} 42. Qf6+ {[%emt 0:00:01]} 1-0